bitfinex/quotes_BTCUSD_20250224
["timestamp","ask_amount","ask_price","bid_price","bid_amount"]
[1740395493809,0.00110558,95715.0,95704.0,0.0814]
[1740395494018,0.156717,95714.0,95705.0,0.10264569]
[1740395494220,0.00110558,95715.0,95705.0,0.10264569]
[1740395494580,0.15672,95712.0,95705.0,0.10264569]
[1740395495004,0.00110558,95714.0,95705.0,0.10264569]
[1740395495217,0.156717,95714.0,95705.0,0.10264569]
[1740395495415,0.19805115,95720.0,95705.0,0.10264569]
[1740395495632,0.208953,95716.0,95705.0,0.10264569]
[1740395495829,0.156718,95714.0,95705.0,0.10664569]
[1740395496050,0.156718,95714.0,95705.0,0.10264569]
[1740395496251,0.156718,95714.0,95705.0,0.11064569]
[1740395496462,0.156718,95713.0,95705.0,0.11064569]
[1740395496924,0.156717,95714.0,95705.0,0.11064569]
[1740395497348,0.40699415,95720.0,95705.0,0.11064569]
[1740395497689,0.40699415,95720.0,95705.0,0.10564569]
[1740395498086,0.156716,95715.0,95705.0,0.10864569]
[1740395498491,0.156716,95715.0,95705.0,0.10564569]
[1740395498692,0.156713,95716.0,95705.0,0.10364569]
[1740395498904,0.156715,95715.0,95705.0,0.10364569]
[1740395499107,0.156715,95715.0,95705.0,0.10834429]
[1740395499443,0.156715,95715.0,95705.0,0.10434429]
[1740395499650,0.156715,95715.0,95705.0,0.11034429]
[1740395499861,0.208938,95722.0,95705.0,0.11034429]
[1740395500067,0.156713,95716.0,95705.0,0.11034429]
[1740395500819,0.156712,95717.0,95705.0,0.11180696]
[1740395501021,0.22590205,95730.0,95705.0,0.10880696]
[1740395501221,0.15,95729.0,95708.0,0.0828]
[1740395501456,0.15,95734.0,95711.0,0.156721]
[1740395501656,0.0008493,95736.0,95712.0,0.10410826]
[1740395501810,0.1567,95724.0,95713.0,0.0828]
[1740395502006,0.208927,95727.0,95714.0,0.10264569]
[1740395502214,0.156708,95720.0,95714.0,0.10264569]
[1740395502415,0.208938,95723.0,95714.0,0.10264569]
[1740395502707,0.156705,95722.0,95714.0,0.10264569]
[1740395504110,0.156706,95721.0,95714.0,0.10264569]
[1740395504832,0.156706,95721.0,95714.0,0.10364569]
[1740395505228,0.156706,95721.0,95714.0,0.10264569]
[1740395505480,0.156703,95722.0,95714.0,0.10364569]
[1740395505686,0.156701,95724.0,95714.0,0.10364569]
[1740395506108,0.156701,95724.0,95714.0,0.10464569]
[1740395506311,0.21824848,95730.0,95714.0,0.10364569]
[1740395506438,0.1567,95724.0,95714.0,0.10364569]
[1740395506636,0.208907,95737.0,95714.0,0.10364569]
[1740395507007,0.156702,95723.0,95714.0,0.10364569]
[1740395507243,0.156702,95723.0,95714.0,0.10264569]
[1740395507446,0.156701,95724.0,95714.0,0.10264569]
[1740395507581,0.156701,95724.0,95714.0,0.10364569]
[1740395507992,0.156701,95724.0,95714.0,0.10264569]
[1740395508197,0.156702,95723.0,95714.0,0.10364569]
[1740395508597,0.156702,95723.0,95714.0,0.10264569]
[1740395508797,0.1567,95724.0,95714.0,0.10264569]
[1740395509442,0.1567,95724.0,95714.0,0.10364569]
[1740395510841,0.1567,95724.0,95714.0,0.10264569]
[1740395511054,0.156702,95723.0,95714.0,0.10264569]
[1740395511419,0.156702,95723.0,95714.0,0.10364569]
[1740395511633,0.156701,95724.0,95714.0,0.10364569]
[1740395511822,0.156701,95724.0,95714.0,0.10264569]
[1740395512145,0.208932,95725.0,95714.0,0.10364569]
[1740395512411,0.156702,95723.0,95714.0,0.10464569]
[1740395512613,0.156702,95723.0,95714.0,0.10634449]
[1740395513407,0.208932,95725.0,95714.0,0.10634449]
[1740395513589,0.208932,95725.0,95714.0,0.10534449]
[1740395513783,0.156702,95723.0,95714.0,0.10534449]
[1740395514367,0.156702,95723.0,95714.0,0.10434449]
[1740395514970,0.208932,95725.0,95714.0,0.10434449]
[1740395515146,0.156702,95723.0,95714.0,0.10434449]
[1740395515367,0.156702,95723.0,95714.0,0.10634449]
[1740395516299,0.208928,95727.0,95714.0,0.10634449]
[1740395516707,0.208923,95729.0,95714.0,0.10534449]
[1740395516909,0.1567,95724.0,95714.0,0.10534449]
[1740395517114,0.0008494,95732.0,95717.0,0.0471]
[1740395517324,0.0008494,95732.0,95718.0,0.10264569]
[1740395517524,0.15669,95730.0,95718.0,0.10264569]
[1740395517740,0.0008494,95732.0,95718.0,0.10264569]
[1740395517964,0.001,95729.0,95718.0,0.10264569]
[1740395518165,0.156698,95726.0,95718.0,0.10264569]
[1740395518342,0.21824848,95730.0,95718.0,0.10264569]
[1740395518571,0.156703,95722.0,95718.0,0.10364569]
[1740395518775,0.156708,95720.0,95718.0,0.10364569]
[1740395519015,0.156708,95719.0,95718.0,0.10464569]
[1740395519441,0.208941,95721.0,95718.0,0.10464569]
[1740395519657,0.156708,95719.0,95718.0,0.002]
[1740395519858,0.156708,95719.0,95718.0,0.001]
[1740395520190,0.156708,95719.0,95718.0,0.002]
[1740395520852,0.156708,95719.0,95718.0,0.001]
[1740395521384,0.156715,95715.0,95714.0,0.0016988]
[1740395522545,0.156715,95715.0,95714.0,0.0026988]
[1740395524577,0.156715,95715.0,95714.0,0.0016988]
[1740395526381,0.355215,95715.0,95714.0,0.0016988]
[1740395526989,0.436015,95715.0,95714.0,0.0016988]
[1740395530159,0.45055585,95715.0,95714.0,0.0016988]
[1740395540431,0.36975585,95715.0,95714.0,0.0016988]
[1740395552593,0.32125585,95715.0,95714.0,0.0016988]
[1740395564508,0.156738,95701.0,95700.0,0.03294628]
[1740395565689,0.156738,95701.0,95700.0,0.03894628]
[1740395566029,0.156738,95701.0,95700.0,0.04394628]
[1740395569440,0.156738,95701.0,95700.0,0.011]
[1740395570150,0.156738,95701.0,95700.0,0.006]
[1740395571028,0.156738,95701.0,95700.0,0.008]
[1740395571678,0.156738,95701.0,95700.0,0.002]
[1740395572008,0.156738,95701.0,95700.0,0.004]
[1740395572162,0.156738,95701.0,95700.0,0.0048498]
[1740395572362,0.156738,95701.0,95700.0,0.0008498]
[1740395572567,0.1584376,95701.0,95700.0,0.0008498]
[1740395572772,0.1584376,95701.0,95700.0,0.0048498]
[1740395573670,0.3084376,95701.0,95700.0,0.0048498]
[1740395574489,0.39561811,95701.0,95700.0,0.0048498]
[1740395575288,0.39561811,95701.0,95700.0,0.0028498]
[1740395575761,0.39761811,95701.0,95700.0,0.0008498]
[1740395579015,0.39661811,95701.0,95700.0,0.0008498]
[1740395579455,0.59639199,95701.0,95700.0,0.0008498]
[1740395579814,0.59539199,95701.0,95700.0,0.0008498]
[1740395580041,0.59239199,95701.0,95700.0,0.0008498]
[1740395580246,0.16454085,95700.0,95680.0,0.0821]
[1740395580446,0.306762,95686.0,95685.0,0.00180333]
[1740395581549,0.31831288,95686.0,95685.0,0.00180333]
[1740395581966,0.31831288,95686.0,95685.0,0.00280333]
[1740395582617,0.31831288,95686.0,95685.0,0.00180333]
[1740395582759,0.31831288,95686.0,95685.0,0.00380333]
[1740395582965,0.31831288,95686.0,95685.0,0.00280333]
[1740395583194,0.31831288,95686.0,95685.0,0.00380333]
[1740395584048,0.51224838,95686.0,95685.0,0.00380333]
[1740395585121,0.31831288,95686.0,95685.0,0.00380333]
[1740395596194,0.31831288,95686.0,95685.0,0.00280333]
[1740395596396,0.31931288,95686.0,95685.0,0.00280333]
[1740395597095,0.31931288,95686.0,95685.0,0.00180333]
[1740395597613,0.32031288,95686.0,95685.0,0.00180333]
[1740395601528,0.01355088,95686.0,95685.0,0.00180333]
[1740395601707,0.17031288,95686.0,95685.0,0.00180333]
[1740395606500,0.17031288,95686.0,95685.0,0.00184333]
[1740395611224,0.26405373,95686.0,95685.0,0.00184333]
[1740395611598,0.306774,95679.0,95678.0,0.0008504]
[1740395611816,0.32131485,95679.0,95678.0,0.0008504]
[1740395612725,0.42396054,95679.0,95678.0,4e-07]
[1740395612947,0.83096054,95679.0,95678.0,4e-07]
[1740395613603,0.94688623,95679.0,95678.0,4e-07]
[1740395613844,0.95188623,95679.0,95678.0,4e-07]
[1740395614090,0.84924054,95679.0,95678.0,4e-07]
[1740395614768,0.32132585,95672.0,95671.0,0.0004]
[1740395614970,0.42397154,95672.0,95671.0,0.0004]
[1740395615197,0.42397154,95672.0,95671.0,8.069e-05]
[1740395615665,0.44575683,95672.0,95671.0,8.069e-05]
[1740395615887,0.44575683,95672.0,95641.0,0.0457]
[1740395615888,0.0819,95661.0,95641.0,0.0457]
[1740395616095,0.156833,95643.0,95641.0,0.0457]
[1740395617314,0.156833,95643.0,95638.0,0.0807]
[1740395619984,0.16775449,95643.0,95638.0,0.0807]
[1740395620212,0.35408731,95643.0,95638.0,0.0807]
[1740395621854,0.16775449,95643.0,95638.0,0.0807]
[1740395623365,0.16875449,95643.0,95638.0,0.0807]
[1740395623910,0.16775449,95643.0,95638.0,0.0807]
[1740395626208,0.16875449,95643.0,95638.0,0.0807]
[1740395637190,0.16875449,95643.0,95631.0,0.0464]
[1740395637191,0.33329534,95643.0,95604.0,0.3222498]
[1740395637390,0.156872,95619.0,95604.0,0.0008498]
[1740395637547,0.143361,95630.0,95618.0,0.0473992]
[1740395638372,0.156872,95619.0,95618.0,0.0473992]
[1740395644505,0.20916,95621.0,95618.0,0.0473992]
[1740395644700,0.156872,95619.0,95618.0,0.0473992]
[1740395648673,0.15687,95621.0,95618.0,0.0473992]
[1740395648828,0.156872,95619.0,95618.0,0.0473992]
[1740395658799,0.00791275,95627.0,95618.0,0.0473992]
[1740395659003,0.156865,95624.0,95618.0,0.0473992]
[1740395659777,0.156866,95623.0,95618.0,0.0473992]
[1740395659977,0.209153,95624.0,95619.0,0.10264569]
[1740395660175,0.156867,95623.0,95619.0,0.10264569]
[1740395660479,0.156868,95622.0,95619.0,0.10264569]
[1740395660680,0.209133,95633.0,95619.0,0.10264569]
[1740395661454,0.156869,95621.0,95619.0,0.10264569]
[1740395661833,0.156867,95622.0,95619.0,0.10264569]
[1740395662037,0.156866,95623.0,95619.0,0.10264569]
[1740395662450,0.00780873,95629.0,95619.0,0.10264569]
[1740395662643,0.156868,95622.0,95619.0,0.10264569]
[1740395662885,0.156866,95623.0,95619.0,0.10264569]
[1740395666999,0.209101,95648.0,95619.0,0.10264569]
[1740395667173,0.418097,95672.0,95621.0,0.0763]
[1740395667174,0.00790986,95636.0,95621.0,0.0763]
[1740395667387,0.209119,95639.0,95622.0,0.10410962]
[1740395667581,0.143361,95640.0,95622.0,0.10410962]
[1740395667935,0.352478,95640.0,95622.0,0.10410962]
[1740395668140,0.3276006,95642.0,95622.0,0.10410962]
[1740395668320,0.156841,95638.0,95623.0,0.0755]
[1740395668526,0.156843,95637.0,95624.0,0.10410954]
[1740395669260,0.156849,95633.0,95624.0,0.10264569]
[1740395669997,0.209128,95635.0,95624.0,0.10264569]
[1740395669998,0.156848,95634.0,95624.0,0.10264569]
[1740395671144,0.209119,95639.0,95624.0,0.10264569]
[1740395671371,0.156849,95633.0,95624.0,0.10264569]
[1740395671520,0.15685,95633.0,95624.0,0.10264569]
[1740395672129,0.143361,95640.0,95624.0,0.10264569]
[1740395672451,0.15685,95633.0,95624.0,0.10264569]
[1740395673004,0.143361,95640.0,95624.0,0.10264569]
[1740395673231,0.156848,95634.0,95624.0,0.10264569]
[1740395673433,0.209126,95636.0,95624.0,0.10264569]
[1740395673634,0.156847,95635.0,95624.0,0.10264569]
[1740395673865,0.156848,95634.0,95624.0,0.10364569]
[1740395675265,0.156848,95634.0,95624.0,0.10264569]
[1740395676905,0.156849,95633.0,95624.0,0.10264569]
[1740395677132,0.0017006,95642.0,95624.0,0.10264569]
[1740395677133,0.0017006,95642.0,95627.0,0.0779]
[1740395677340,0.0017006,95642.0,95630.0,0.143361]
[1740395677555,0.001,95640.0,95632.0,0.0798]
[1740395677731,0.001,95640.0,95630.0,0.143361]
[1740395677732,0.001,95640.0,95639.0,0.0798]
[1740395677974,0.001,95640.0,95639.0,0.23130935]
[1740395678177,0.001,95640.0,95639.0,0.22984569]
[1740395679504,0.0017006,95642.0,95639.0,0.22984569]
[1740395679657,0.0017006,95642.0,95640.0,0.10264569]
[1740395693735,0.156836,95641.0,95640.0,0.10264569]
[1740395696604,0.0017006,95642.0,95640.0,0.10264569]
[1740395697013,0.1585346,95642.0,95640.0,0.10264569]
[1740395699551,0.156836,95641.0,95640.0,0.10264569]
[1740395700165,0.1585366,95642.0,95640.0,0.10264569]
[1740395700416,0.156836,95641.0,95640.0,0.10264569]
[1740395701014,0.0017006,95642.0,95640.0,0.10264569]
[1740395701200,0.1585366,95642.0,95640.0,0.10264569]
[1740395701398,0.156836,95641.0,95640.0,0.10264569]
[1740395704640,0.15674373,95641.0,95640.0,0.10264569]
[1740395710914,0.0017006,95642.0,95640.0,0.10264569]
[1740395711114,0.156836,95641.0,95640.0,0.10264569]
[1740395713765,0.156838,95640.0,95639.0,0.0008494]
[1740395719013,0.156837,95641.0,95639.0,0.0008494]
[1740395719188,0.156838,95640.0,95639.0,0.0008494]
[1740395726582,0.0017006,95642.0,95639.0,0.0008494]
[1740395726787,0.156838,95640.0,95639.0,0.0008494]
[1740395727224,0.0017006,95642.0,95639.0,0.0008494]
[1740395727353,0.156838,95640.0,95639.0,0.0008494]
[1740395731502,0.1585362,95641.0,95639.0,0.0008494]
[1740395731716,0.156838,95640.0,95639.0,0.0008494]
[1740395732543,0.0016992,95641.0,95639.0,0.0008494]
[1740395733418,0.156838,95640.0,95639.0,0.0008494]
[1740395733853,0.0016992,95641.0,95639.0,0.0008494]
[1740395734505,0.0016992,95641.0,95640.0,0.33468369]
[1740395734729,0.0016992,95641.0,95640.0,0.38128369]
[1740395736919,0.0016992,95641.0,95640.0,0.38328369]
[1740395737337,0.0026992,95641.0,95640.0,0.38328369]
[1740395737543,0.0026992,95641.0,95640.0,0.38128369]
[1740395737973,0.0036992,95641.0,95640.0,0.38328369]
[1740395745152,0.0026992,95641.0,95640.0,0.38328369]
[1740395745579,0.0036992,95641.0,95640.0,0.38328369]
[1740395745991,0.0026992,95641.0,95640.0,0.38128369]
[1740395746195,0.0036992,95641.0,95640.0,0.38828369]
[1740395747268,0.0036992,95641.0,95640.0,0.53828369]
[1740395747655,0.0036992,95641.0,95640.0,0.85968369]
[1740395749441,0.0036992,95641.0,95640.0,0.88020535]
[1740395750518,0.0036992,95641.0,95640.0,0.88008535]
[1740395751915,0.0036992,95641.0,95640.0,0.88093495]
[1740395756157,0.0036992,95641.0,95640.0,0.90093495]
[1740395757073,0.0026992,95641.0,95640.0,0.9084758]
[1740395757231,0.0016992,95641.0,95640.0,0.9084758]
[1740395757428,0.0016992,95641.0,95640.0,1.49423894]
[1740395757429,0.0036992,95641.0,95640.0,1.49423894]
[1740395758326,0.0026992,95641.0,95640.0,1.48923894]
[1740395758702,0.0036992,95641.0,95640.0,1.49423894]
[1740395758884,0.0026992,95641.0,95640.0,1.48723894]
[1740395759416,0.0026992,95641.0,95640.0,1.49423894]
[1740395759646,0.0026992,95641.0,95640.0,1.48723894]
[1740395760079,0.0026992,95641.0,95640.0,1.49423894]
[1740395763821,0.0026992,95641.0,95640.0,1.45969809]
[1740395764020,0.0026992,95641.0,95640.0,1.45193495]
[1740395764245,0.0026992,95641.0,95640.0,1.43193495]
[1740395764553,0.0026992,95641.0,95640.0,1.45193495]
[1740395764880,0.01084657,95669.0,95640.0,1.45193495]
[1740395764881,0.209032,95679.0,95642.0,0.02]
[1740395765082,0.15425486,95680.0,95657.0,0.15]
[1740395765281,0.156776,95678.0,95658.0,0.10264569]
[1740395765461,0.156774,95679.0,95665.0,0.156795]
[1740395765658,0.15425486,95680.0,95666.0,0.10264569]
[1740395765899,0.156776,95678.0,95666.0,0.10264569]
[1740395766274,0.15678,95676.0,95666.0,0.10264569]
[1740395766478,0.209035,95678.0,95666.0,0.10264569]
[1740395766679,0.15425486,95680.0,95666.0,0.10264569]
[1740395766877,0.209032,95679.0,95666.0,0.10364569]
[1740395767093,0.156785,95673.0,95666.0,0.10364569]
[1740395767291,0.15425486,95680.0,95666.0,0.10364569]
[1740395767494,0.156786,95672.0,95666.0,0.10364569]
[1740395767846,0.156776,95678.0,95666.0,0.10364569]
[1740395768049,0.156775,95678.0,95666.0,0.10564569]
[1740395768261,0.156775,95678.0,95666.0,0.10464569]
[1740395768443,0.156777,95677.0,95666.0,0.10264569]
[1740395768658,0.284734,95679.0,95666.0,0.10464569]
[1740395769012,0.156777,95678.0,95666.0,0.10464569]
[1740395769213,0.156779,95676.0,95666.0,0.10864569]
[1740395769414,0.156779,95676.0,95666.0,0.10664569]
[1740395769611,0.209034,95678.0,95666.0,0.10664569]
[1740395769810,0.0757,95679.0,95666.0,0.10864569]
[1740395770016,0.209034,95678.0,95666.0,0.10864569]
[1740395770218,0.209042,95675.0,95666.0,0.10864569]
[1740395770420,0.156786,95672.0,95666.0,0.10464569]
[1740395770616,0.156788,95671.0,95666.0,0.10564569]
[1740395770893,0.209045,95673.0,95666.0,0.10564569]
[1740395771093,0.156785,95672.0,95666.0,0.10464569]
[1740395771302,0.156785,95672.0,95666.0,0.10764569]
[1740395771508,0.209045,95673.0,95666.0,0.10764569]
[1740395771710,0.209045,95673.0,95666.0,0.10464569]
[1740395771889,0.156785,95672.0,95666.0,0.10664569]
[1740395772104,0.156785,95672.0,95666.0,0.10264569]
[1740395772105,0.156786,95672.0,95666.0,0.10264569]
[1740395772346,0.156793,95667.0,95666.0,0.10264569]
[1740395772727,0.156793,95667.0,95666.0,0.10464569]
[1740395773143,0.156793,95667.0,95666.0,0.10264569]
[1740395773540,0.156793,95667.0,95666.0,0.10864569]
[1740395773894,0.156793,95667.0,95666.0,0.10664569]
[1740395774094,0.156793,95667.0,95666.0,0.11064569]
[1740395774299,0.156793,95667.0,95666.0,0.008]
[1740395774475,0.239393,95667.0,95666.0,0.008]
[1740395776073,0.239393,95667.0,95666.0,0.004]
[1740395776272,0.286693,95667.0,95666.0,0.004]
[1740395777080,0.1299,95667.0,95640.0,0.0008496]
[1740395777294,0.156828,95646.0,95641.0,0.10264569]
[1740395777505,0.156833,95643.0,95641.0,0.10264569]
[1740395777706,0.143361,95650.0,95641.0,0.10264569]
[1740395777916,0.209097,95649.0,95641.0,0.10264569]
[1740395778115,0.156831,95644.0,95641.0,0.10264569]
[1740395778389,0.143361,95650.0,95641.0,0.10264569]
[1740395778644,0.143361,95650.0,95641.0,0.10864569]
[1740395778864,0.156833,95644.0,95641.0,0.10264569]
[1740395779096,0.156834,95642.0,95641.0,0.10664569]
[1740395779712,0.156834,95642.0,95641.0,0.10264569]
[1740395779896,0.17041508,95642.0,95641.0,0.10264569]
[1740395780100,0.17032789,95642.0,95641.0,0.10264569]
[1740395780271,0.17032789,95642.0,95641.0,0.10764569]
[1740395780477,0.17032789,95642.0,95641.0,0.10264569]
[1740395780671,0.17032789,95642.0,95641.0,0.10864569]
[1740395781075,0.17032789,95642.0,95641.0,0.11564569]
[1740395781619,0.17032789,95642.0,95641.0,0.10864569]
[1740395781777,0.17032789,95642.0,95641.0,0.11464569]
[1740395782451,0.17032789,95642.0,95641.0,0.10864569]
[1740395782600,0.17032789,95642.0,95641.0,0.11364569]
[1740395782805,0.01358108,95642.0,95641.0,0.11364569]
[1740395783011,0.15683,95645.0,95641.0,0.11364569]
[1740395783219,0.15683,95645.0,95641.0,0.10764569]
[1740395783421,0.15683,95645.0,95641.0,0.11264569]
[1740395783625,0.156834,95642.0,95641.0,0.11264569]
[1740395783838,0.156834,95642.0,95641.0,0.10764569]
[1740395783839,0.17018769,95642.0,95641.0,0.10764569]
[1740395784069,0.01335369,95642.0,95641.0,0.004]
[1740395784298,0.143361,95650.0,95641.0,0.004]
[1740395784457,0.156834,95643.0,95641.0,0.008]
[1740395784676,0.15681135,95650.0,95641.0,0.008]
[1740395784837,0.156834,95642.0,95640.0,0.0008496]
[1740395785249,0.156834,95642.0,95641.0,0.01]
[1740395785720,0.209109,95644.0,95641.0,0.005]
[1740395786161,0.156834,95642.0,95641.0,0.005]
[1740395786369,0.156834,95642.0,95641.0,0.0058493]
[1740395787014,0.156834,95642.0,95641.0,0.0008493]
[1740395787265,0.20036832,95644.0,95641.0,0.0048493]
[1740395787443,0.156834,95642.0,95641.0,0.0008493]
[1740395787848,0.156834,95642.0,95641.0,0.0098493]
[1740395788045,0.156834,95642.0,95641.0,0.0048493]
[1740395788254,0.156834,95642.0,95641.0,0.0008493]
[1740395788453,0.156834,95642.0,95641.0,0.0048493]
[1740395788652,0.156834,95642.0,95641.0,0.0098493]
[1740395790686,0.156834,95642.0,95641.0,0.0148493]
[1740395799499,0.237534,95642.0,95641.0,0.0148493]
[1740395800293,0.387534,95642.0,95641.0,0.0148493]
[1740395800844,0.387534,95642.0,95641.0,0.0058493]
[1740395801045,0.387534,95642.0,95641.0,0.0008493]
[1740395801248,0.389534,95642.0,95641.0,0.0008493]
[1740395801432,0.392534,95642.0,95641.0,0.0008493]
[1740395807637,0.40707485,95642.0,95641.0,0.0008493]
[1740395810279,0.32637485,95642.0,95641.0,0.0008493]
[1740395816218,0.33561485,95642.0,95641.0,0.0008493]
[1740395828234,0.32637485,95642.0,95641.0,0.0008493]
[1740395828464,0.33561485,95642.0,95641.0,0.0008493]
[1740395829065,0.311834,95642.0,95641.0,0.0008493]
[1740395833579,0.32637485,95642.0,95641.0,0.0008493]
[1740395848932,0.311834,95642.0,95641.0,0.0833493]
[1740395850168,0.32637485,95642.0,95641.0,0.0008493]
[1740395853315,0.42902054,95642.0,95641.0,0.0008493]
[1740395854525,0.75492054,95642.0,95641.0,0.0008493]
[1740395856886,0.74037969,95642.0,95641.0,0.0008493]
[1740395865983,0.75492054,95642.0,95641.0,0.0008493]
[1740395868349,0.156836,95641.0,95640.0,0.0008496]
[1740395868515,0.25948169,95641.0,95640.0,0.0008496]
[1740395870221,0.42402254,95641.0,95640.0,0.0008496]
[1740395870644,0.42902254,95641.0,95640.0,0.0008496]
[1740395871257,0.42602254,95641.0,95640.0,0.0008496]
[1740395871650,0.53166823,95641.0,95640.0,0.0018496]
[1740395871822,0.53666823,95641.0,95640.0,0.0018496]
[1740395872028,0.53166823,95641.0,95640.0,0.0018496]
[1740395872259,0.53166823,95641.0,95640.0,0.0008496]
[1740395872461,0.85756823,95641.0,95640.0,0.0008496]
[1740395873394,0.86356823,95641.0,95640.0,0.0018496]
[1740395877070,0.76092254,95641.0,95640.0,0.0018496]
[1740395894145,0.76262174,95641.0,95640.0,0.0018496]
[1740395895347,0.76262174,95641.0,95624.0,0.0771495]
[1740395895348,0.156862,95625.0,95624.0,0.0771495]
[1740395897558,0.01454085,95626.0,95624.0,0.0771495]
[1740395897988,0.156862,95625.0,95624.0,0.0771495]
[1740395900614,0.16461208,95625.0,95624.0,0.0771495]
[1740395911197,0.00775008,95625.0,95624.0,0.0771495]
[1740395911339,0.16461208,95625.0,95624.0,0.1226495]
[1740395936838,0.16461208,95625.0,95624.0,0.0008495]
[1740395944044,0.17915293,95625.0,95624.0,0.0008495]
[1740395947417,0.32915293,95625.0,95624.0,0.0008495]
[1740395959118,0.43179862,95625.0,95624.0,0.0008495]
[1740395959941,0.43479862,95625.0,95624.0,0.0008495]
[1740395960166,0.33215293,95625.0,95624.0,0.0008495]
[1740395960765,0.33415293,95625.0,95624.0,0.0008495]
[1740395961059,0.33215293,95625.0,95624.0,0.0008495]
[1740395961311,0.33515293,95625.0,95624.0,0.0008495]
[1740395961514,0.33215293,95625.0,95624.0,0.0008495]
[1740395961860,0.33515293,95625.0,95624.0,0.0008495]
[1740395964197,0.43779862,95625.0,95624.0,0.0008495]
[1740395965153,0.33515293,95625.0,95624.0,0.0008495]
[1740395965630,0.60471282,95625.0,95624.0,0.0008495]
[1740395966335,0.33515293,95625.0,95624.0,0.0008495]
[1740395967908,0.43779862,95625.0,95624.0,0.0008495]
[1740395973338,0.76369862,95625.0,95624.0,0.0008495]
[1740395979537,1.03717642,95625.0,95624.0,0.0008495]
[1740395980173,0.76369862,95625.0,95624.0,0.0008495]
[1740395980731,0.77289862,95625.0,95624.0,0.0008495]
[1740395981131,0.76369862,95625.0,95624.0,0.0008495]
[1740395981335,0.64651208,95625.0,95624.0,0.0776495]
[1740395981675,0.49651208,95625.0,95624.0,0.0776495]
[1740395982093,0.64651208,95625.0,95624.0,0.0776495]
[1740395982338,0.66105293,95625.0,95624.0,0.0776495]
[1740395983671,0.66105293,95625.0,95624.0,0.0008495]
[1740395986351,0.86634431,95625.0,95624.0,0.0008495]
[1740395986884,0.306872,95619.0,95618.0,0.0016992]
[1740395987091,0.42405854,95619.0,95618.0,0.0016992]
[1740395987748,0.156892,95607.0,95606.0,0.0762]
[1740395987919,0.32143285,95607.0,95606.0,0.0762]
[1740395989013,0.32143285,95607.0,95606.0,0.0772]
[1740395989217,0.32143285,95607.0,95606.0,0.0762]
[1740395989833,0.01454085,95607.0,95606.0,0.0762]
[1740395990163,0.17143285,95607.0,95606.0,0.0762]
[1740395991349,0.17243285,95607.0,95606.0,0.0762]
[1740395991526,0.17443285,95607.0,95606.0,0.0762]
[1740395991763,0.156895,95605.0,95604.0,0.0008498]
[1740395991981,0.32143585,95605.0,95604.0,0.0008498]
[1740395992925,0.32243585,95605.0,95604.0,0.0008498]
[1740395993542,0.32243585,95605.0,95594.0,0.0818]
[1740395993543,0.32145185,95595.0,95594.0,0.0818]
[1740395994938,0.32245185,95595.0,95594.0,0.0818]
[1740395996034,0.32345185,95595.0,95594.0,0.0818]
[1740395996875,0.33576226,95595.0,95594.0,0.0818]
[1740395998230,0.34374489,95595.0,95594.0,0.0818]
[1740395999526,0.34374489,95595.0,95594.0,0.0826496]
[1740396006855,0.32920404,95595.0,95594.0,0.0826496]
[1740396008902,0.01431041,95595.0,95594.0,0.1291496]
[1740396009110,0.17122141,95595.0,95594.0,0.1291496]
[1740396021467,0.01431041,95595.0,95594.0,0.1291496]
[1740396022295,0.17122141,95595.0,95594.0,0.1291496]
[1740396047383,0.01431041,95595.0,95594.0,0.1291496]
[1740396048383,0.01331041,95595.0,95594.0,0.1291496]
[1740396048600,0.17022141,95595.0,95594.0,0.1291496]
[1740396048937,0.01331041,95595.0,95594.0,0.1291496]
[1740396049148,0.01231041,95595.0,95594.0,0.1291496]
[1740396049352,0.16922141,95595.0,95594.0,0.1291496]
[1740396049638,0.156911,95595.0,95594.0,0.1291496]
[1740396051175,0.16840664,95595.0,95594.0,0.1291496]
[1740396055688,0.01149564,95595.0,95594.0,0.1291496]
[1740396055895,0.01149564,95595.0,95594.0,0.23179529]
[1740396056117,0.01454085,95617.0,95595.0,0.0808]
[1740396056320,0.1569,95603.0,95596.0,0.10264569]
[1740396056520,0.209195,95605.0,95597.0,0.0808]
[1740396056804,0.156902,95601.0,95598.0,0.10264569]
[1740396057148,0.156903,95600.0,95598.0,0.10264569]
[1740396057801,0.156905,95599.0,95598.0,0.10264569]
[1740396057977,0.156905,95599.0,95598.0,0.10464569]
[1740396058989,0.156905,95599.0,95598.0,0.10264569]
[1740396059393,0.011776,95601.0,95598.0,0.10264569]
[1740396059599,0.156905,95599.0,95598.0,0.10264569]
[1740396059843,0.156905,95599.0,95598.0,0.10464569]
[1740396060820,0.156904,95600.0,95598.0,0.10464569]
[1740396061029,0.156904,95600.0,95598.0,0.10664569]
[1740396061531,0.156904,95600.0,95598.0,0.10464569]
[1740396061715,0.156904,95600.0,95598.0,0.10664569]
[1740396062120,0.156905,95599.0,95598.0,0.10464569]
[1740396062416,0.156905,95599.0,95598.0,0.10664569]
[1740396062775,0.156905,95599.0,95598.0,0.10464569]
[1740396063203,0.15338591,95599.0,95598.0,0.10664569]
[1740396063456,0.01167481,95601.0,95598.0,0.10664569]
[1740396063626,0.156905,95599.0,95598.0,0.10464569]
[1740396063854,0.156903,95601.0,95598.0,0.10464569]
[1740396064036,0.0117522,95601.0,95598.0,0.10464569]
[1740396064265,0.1686542,95601.0,95598.0,0.10464569]
[1740396064468,0.156902,95601.0,95598.0,0.10464569]
[1740396064680,0.156902,95601.0,95598.0,0.10264569]
[1740396064865,0.156902,95601.0,95598.0,0.10464569]
[1740396065024,0.156902,95601.0,95598.0,0.10664569]
[1740396065688,0.01166748,95601.0,95598.0,0.10464569]
[1740396065890,0.16856948,95601.0,95598.0,0.10664569]
[1740396066094,0.156902,95601.0,95598.0,0.10664569]
[1740396067280,0.16851418,95601.0,95598.0,0.10664569]
[1740396068167,0.156905,95599.0,95598.0,0.10664569]
[1740396069335,0.01161218,95601.0,95598.0,0.10749539]
[1740396069501,0.209198,95603.0,95598.0,0.10549539]
[1740396069502,0.1569,95602.0,95598.0,0.10549539]
[1740396069692,0.1569,95602.0,95598.0,0.10749539]
[1740396070143,0.16866043,95602.0,95598.0,0.10549539]
[1740396070347,0.01176043,95602.0,95598.0,0.10549539]
[1740396070523,0.1569,95602.0,95599.0,0.0795]
[1740396071046,0.20919,95607.0,95599.0,0.0795]
[1740396071647,0.2210082,95607.0,95599.0,0.0795]
[1740396072275,0.209195,95605.0,95599.0,0.0815]
[1740396072810,0.156899,95603.0,95599.0,0.0835]
[1740396073017,0.156899,95603.0,95599.0,0.0815]